bitfinex-derivatives/quotes_SOLF0:USTF0_20260126
["timestamp","ask_amount","ask_price","bid_price","bid_amount"]
[1769426966184,3.31322086,122.56,122.5,15.27437814]
[1769426966386,1.74156703,122.58,122.49,5.14694776]
[1769426966387,5.05478789,122.54,122.49,10.76018073]
[1769426966781,5.05478789,122.54,122.5,3.40538073]
[1769426966980,10.66482086,122.55,122.5,3.40538073]
[1769426971784,10.66542086,122.54,122.48,22.63017814]
[1769426971989,3.31322086,122.53,122.48,10.76118073]
[1769426973888,10.66482086,122.55,122.49,10.76048073]
[1769426974090,5.05478789,122.55,122.49,10.76048073]
[1769426974288,3.31322086,122.55,122.49,10.76048073]
[1769426975491,3.31322086,122.55,122.51,3.40538073]
[1769426979395,5.05478789,122.55,122.5,10.75978073]
[1769426979591,3.31322086,122.55,122.5,10.75978073]
[1769426985395,5.05570829,122.55,122.5,10.75978073]
[1769426988098,3.31322086,122.55,122.51,10.75928073]
[1769426989895,5.05570829,122.55,122.51,10.75928073]
[1769426993598,3.31322086,122.55,122.51,10.75928073]
[1769426994701,3.31322086,122.55,122.51,7.3539]
[1769426994898,5.05570829,122.55,122.5,10.854915]
[1769426997396,3.31322086,122.55,122.5,10.854915]
[1769426998703,5.05570829,122.55,122.5,10.854915]
[1769426999108,3.4649925,122.54,122.5,7.3545]
[1769427000308,3.4649925,122.54,122.49,10.855615]
[1769427000507,5.20747993,122.54,122.49,10.855615]
[1769427001805,3.4649925,122.54,122.49,10.855615]
[1769427002007,3.4649925,122.55,122.5,10.855015]
[1769427002311,3.4649925,122.55,122.5,3.500415]
[1769427003805,3.4649925,122.53,122.48,3.500415]
[1769427004205,5.20747993,122.52,122.48,3.500415]
[1769427005110,5.20747993,122.54,122.48,3.500415]
[1769427006014,12.55977993,122.54,122.48,3.500415]
[1769427006208,3.4649925,122.53,122.48,3.500415]
[1769427011426,3.4649925,122.53,122.48,12.59860243]
[1769427011616,5.20747993,122.55,122.49,3.500415]
[1769427012526,5.20747993,122.55,122.5,3.500415]
[1769427012724,3.4649925,122.55,122.5,3.500415]
[1769427013919,3.4649925,122.55,122.5,10.855015]
[1769427014432,7.351,122.56,122.51,3.500415]
[1769427014635,10.8159925,122.56,122.51,3.500415]
[1769427015024,12.55847993,122.56,122.51,3.500415]
[1769427015224,3.4649925,122.54,122.49,3.500415]
[1769427015527,5.20747993,122.54,122.49,3.500415]
[1769427016126,5.20747993,122.54,122.49,10.855515]
[1769427019930,289.9,122.57,122.51,3.48781811]
[1769427019931,10.72084072,122.56,122.51,3.48781811]
[1769427020131,12.46332815,122.56,122.51,3.48781811]
[1769427021039,3.36984072,122.55,122.51,3.48781811]
[1769427024528,300.62034072,122.57,122.51,10.84181811]
[1769427024833,302.36282815,122.57,122.52,3.48781811]
[1769427025932,3.36984072,122.56,122.51,7.354]
[1769427026128,3.36984072,122.56,122.51,10.84181811]
[1769427030639,5.11232815,122.56,122.51,10.84181811]
[1769427041529,5.11217525,122.56,122.51,10.84181811]
[1769427042837,1.74233453,122.56,122.52,3.48781811]
[1769427043042,298.99283453,122.57,122.52,3.48781811]
[1769427043341,302.36267525,122.57,122.52,3.48781811]
[1769427048342,3.40490499,122.56,122.52,3.48781811]
[1769427057657,1.74233453,122.55,122.51,7.3539]
[1769427057858,5.14723952,122.55,122.51,7.3539]
[1769427058657,3.40490499,122.55,122.51,7.3539]
[1769427060461,5.14723952,122.54,122.5,3.3926586]
[1769427061660,3.40490499,122.54,122.5,3.3926586]
[1769427061869,1.74233453,122.52,122.48,3.3926586]
[1769427062363,5.14723952,122.52,122.47,7.3561]
[1769427062558,5.14723952,122.52,122.47,10.7487586]
[1769427065161,3.40490499,122.51,122.47,10.7487586]
[1769427065466,5.14723952,122.51,122.46,3.3926586]
[1769427066063,3.40490499,122.5,122.46,3.3926586]
[1769427066268,3.40490499,122.49,122.44,3.3926586]
[1769427066473,5.14723952,122.49,122.44,3.3926586]
[1769427067861,5.14723952,122.49,122.44,10.7508586]
[1769427068466,1.74233453,122.48,122.44,10.7508586]
[1769427068769,5.14723952,122.48,122.44,3.3926586]
[1769427069367,5.14723952,122.47,122.42,10.7517586]
[1769427072569,7.3554,122.49,122.44,3.3926586]
[1769427072869,12.50263952,122.49,122.44,3.3926586]
[1769427073270,1.74233453,122.48,122.44,3.3926586]
[1769427073970,5.14723952,122.48,122.44,3.3926586]
[1769427075367,1.74233453,122.47,122.42,10.7520586]
[1769427077070,12.50313952,122.48,122.42,10.7520586]
[1769427081373,12.50313952,122.48,122.43,3.24683109]
[1769427081776,3.40490499,122.48,122.43,10.60553109]
[1769427083477,3.40490499,122.48,122.44,3.24683109]
[1769427084382,12.50313952,122.48,122.44,3.24683109]
[1769427085679,10.76080499,122.48,122.44,3.24683109]
[1769427085980,10.76080499,122.48,122.42,7.3593]
[1769427086175,3.25138929,122.47,122.42,10.60613109]
[1769427087779,3.25138929,122.47,122.43,3.24683109]
[1769427088875,7.3559,122.48,122.43,3.24683109]
[1769427090488,10.60728929,122.48,122.43,3.24683109]
[1769427094698,12.34962382,122.48,122.43,3.24683109]
[1769427095388,3.25138929,122.48,122.43,10.60553109]
[1769427097101,9.09783453,122.49,122.44,3.24683109]
[1769427097597,12.34922382,122.49,122.44,3.24683109]
[1769427100197,4.99372382,122.51,122.45,3.24683109]
[1769427100395,3.25138929,122.51,122.45,3.24683109]
[1769427100597,192.94,122.55,122.45,3.24683109]
[1769427100899,3.25138929,122.55,122.5,3.24683109]
[1769427103203,4.99372382,122.54,122.48,3.24683109]
[1769427103706,4.99436149,122.54,122.48,3.24683109]
[1769427104596,12.34656149,122.54,122.48,10.60243109]
[1769427104906,3.25138929,122.54,122.48,10.60243109]
[1769427105902,3.25138929,122.54,122.49,10.60203109]
[1769427108611,7.351,122.56,122.5,3.41685498]
[1769427108612,3.49895768,122.56,122.5,3.41685498]
[1769427108912,3.49895768,122.56,122.51,5.15982718]
[1769427109910,3.49895768,122.56,122.51,12.51322718]
[1769427111708,10.84935768,122.58,122.52,3.41685498]
[1769427112809,3.49895768,122.58,122.52,10.77015498]
[1769427113214,3.49895768,122.58,122.53,10.76945498]
[1769427127525,10.84875768,122.58,122.53,10.76945498]
[1769427127721,3.49895768,122.57,122.53,3.41685498]
[1769427129831,5.24192988,122.57,122.51,10.77075498]
[1769427130728,5.24192988,122.57,122.52,3.41685498]
[1769427130929,7.3511,122.56,122.52,3.41685498]
[1769427134028,3.49895768,122.55,122.51,7.3539]
[1769427134426,3.49895768,122.55,122.51,10.77075498]
[1769427134926,12.59232988,122.57,122.52,3.41685498]
[1769427135929,10.84935768,122.57,122.52,3.41685498]
[1769427136131,3.49895768,122.57,122.53,3.41685498]
[1769427139130,10.84945768,122.57,122.51,12.36535148]
[1769427139327,3.33636528,122.56,122.51,12.36535148]
[1769427139733,3.33636528,122.56,122.51,10.62237928]
[1769427141631,3.33636528,122.55,122.49,10.62317928]
[1769427141936,3.33636528,122.54,122.49,10.62317928]
[1769427145037,10.68876528,122.54,122.49,10.62317928]
[1769427151138,3.33636528,122.54,122.49,10.62317928]
[1769427158450,3.33636528,122.55,122.5,10.62297928]
[1769427159551,3.33636528,122.55,122.51,7.354]
[1769427160647,114.3259,122.59,122.52,10.62177928]
[1769427160648,3.33636528,122.57,122.52,10.62177928]
[1769427163852,336.50556528,122.59,122.53,10.62127928]
[1769427164152,338.2474361,122.59,122.53,10.62127928]
[1769427164854,12.4281361,122.58,122.53,3.26847928]
[1769427165248,3.33636528,122.57,122.51,3.26847928]
[1769427167153,3.33636528,122.57,122.52,10.62137928]
[1769427169457,3.33636528,122.57,122.53,3.37352006]
[1769427182866,3.33636528,122.57,122.53,10.72622006]
[1769427183568,1.74187082,122.58,122.54,10.72562006]
[1769427184165,12.55110896,122.59,122.54,10.72562006]
[1769427186272,3.45993814,122.58,122.52,3.37352006]
[1769427187971,3.45993814,122.58,122.53,7.3526]
[1769427188568,5.20180896,122.57,122.52,10.72682006]
[1769427202984,5.20180896,122.57,122.53,3.26395226]
[1769427203381,1.74187082,122.57,122.53,3.26395226]
[1769427208788,12.34596936,122.58,122.53,3.26395226]
[1769427223697,10.60409854,122.58,122.53,3.26395226]
[1769427233101,3.5338889,122.56,122.51,25.87927483]
[1769427233401,3.5338889,122.56,122.51,10.60489669]
[1769427235601,5.27568326,122.56,122.51,10.60489669]
[1769427238606,12.62668326,122.56,122.51,3.25089669]
[1769427246706,10.8848889,122.56,122.51,3.25089669]
[1769427248912,3.5338889,122.55,122.51,3.25089669]
[1769427249613,3.5338889,122.54,122.49,3.25089669]
[1769427249808,5.27568326,122.54,122.49,3.25089669]
[1769427250609,3.5338889,122.53,122.49,3.25089669]
[1769427250808,5.27568326,122.53,122.48,7.3557]
[1769427251008,3.5338889,122.52,122.47,10.60719669]
[1769427260721,3.5338889,122.52,122.47,12.34899105]
[1769427262631,3.5338889,122.52,122.48,7.3558]
[1769427265035,3.5338889,122.52,122.48,10.59407918]
[1769427266338,7.3531,122.53,122.48,10.59407918]
[1769427267136,10.91554382,122.53,122.48,10.59407918]
[1769427280548,12.65733818,122.53,122.48,10.59407918]
[1769427280747,10.91584382,122.52,122.46,10.59477918]
[1769427281951,10.91584382,122.52,122.47,3.23827918]
[1769427285955,3.56244382,122.51,122.46,7.3565]
[1769427286152,3.56244382,122.51,122.46,10.59477918]
[1769427299569,3.56244382,122.51,122.47,7.3562]
[1769427301669,3.56244382,122.51,122.47,10.92520594]
[1769427301869,10.71016034,122.53,122.48,3.56900594]
[1769427307277,3.35726034,122.52,122.47,7.3562]
[1769427308773,3.35726034,122.51,122.45,10.92620594]
[1769427308979,3.35726034,122.51,122.45,3.56900594]
[1769427309776,3.35726034,122.51,122.46,7.357]
[1769427309978,3.35726034,122.51,122.47,3.56900594]
[1769427310287,3.35726034,122.53,122.47,3.56900594]
[1769427310777,3.35726034,122.53,122.48,5.31253889]
[1769427311376,3.35726034,122.53,122.48,12.66803889]
[1769427311882,3.35726034,122.53,122.48,10.92450594]
[1769427312379,3.35726034,122.53,122.49,10.92400594]
[1769427312586,3.35726034,122.55,122.5,3.56900594]
[1769427314086,3.35726034,122.55,122.5,10.92350594]
[1769427315786,3.35726034,122.55,122.5,12.66703889]
[1769427316181,3.35726034,122.55,122.51,10.72971272]
[1769427323492,197.35393295,122.57,122.51,10.72971272]
[1769427323693,200.59754996,122.57,122.51,10.72971272]
[1769427324296,198.85401701,122.57,122.52,3.43941548]
[1769427325696,200.59754996,122.57,122.52,3.43941548]
[1769427327802,1.74353295,122.56,122.52,3.43941548]
[1769427329502,4.98714996,122.56,122.52,3.43941548]
[1769427346218,12.33824996,122.56,122.52,3.43941548]
[1769427347622,12.33698836,122.56,122.52,3.43941548]
[1769427348936,12.33698836,122.56,122.5,7.3545]
[1769427349115,1.74227135,122.55,122.5,7.3545]
[1769427351023,1.74227135,122.55,122.51,0.49210279]
[1769427358128,12.33698836,122.56,122.51,0.49210279]
[1769427358430,1.74227135,122.55,122.51,0.49210279]
[1769427360333,3.52055415,122.54,122.5,7.3545]
[1769427363637,3.52055415,122.54,122.5,7.84660279]
[1769427365836,1.74227135,122.55,122.5,7.84660279]
[1769427366440,5.2628255,122.55,122.5,7.84660279]
[1769427376261,5.2628255,122.55,122.5,0.49210279]
[1769427376562,12.6146255,122.55,122.5,0.49210279]
[1769427377260,3.52055415,122.54,122.48,15.72082595]
[1769427377464,3.52055415,122.52,122.48,0.49210279]
[1769427377961,3.52055415,122.52,122.47,0.49230556]
[1769427378349,5.2628255,122.52,122.47,0.49230556]
[1769427379054,12.6162255,122.52,122.47,0.49230556]
[1769427379458,5.2023496,122.51,122.47,0.49230556]
[1769427379663,12.5566496,122.51,122.46,0.49281475]
[1769427380755,7.3547,122.5,122.46,0.49281475]
[1769427380957,3.46007825,122.49,122.44,0.49281475]
[1769427382060,3.46007825,122.49,122.44,7.85091475]
[1769427384555,5.2023496,122.49,122.44,7.85091475]
[1769427384760,1.74227135,122.48,122.44,7.85091475]
[1769427385264,5.2023496,122.49,122.44,7.85091475]
[1769427388768,3.46007825,122.49,122.44,7.85091475]
[1769427393569,3.46007825,122.49,122.44,9.5931861]
[1769427393777,3.46007825,122.49,122.41,129.71092316]
[1769427393778,3.46007825,122.52,122.47,0.49281475]
[1769427393964,5.2023496,122.52,122.47,0.49281475]
[1769427394570,12.5563496,122.52,122.47,0.49281475]
[1769427394785,114.361,122.55,122.44,322.51649455]
[1769427394786,3.46007825,122.5,122.44,322.51649455]
[1769427395486,5.2023496,122.5,122.44,322.51649455]
[1769427395973,5.2023496,122.5,122.44,329.87419455]
[1769427396979,3.46007825,122.49,122.44,329.87419455]
[1769427399177,3.46007825,122.49,122.44,7.3577]
[1769427402377,3.46007825,122.49,122.44,7.85051475]
[1769427422292,3.46007825,122.49,122.45,7.85093243]
[1769427422597,10.84214968,122.5,122.45,9.59493091]
[1769427422793,10.84214968,122.5,122.45,7.85093243]
[1769427425488,10.84154968,122.52,122.47,0.49333243]
[1769427426497,3.48754968,122.51,122.47,0.49333243]
[1769427427700,3.48754968,122.51,122.46,9.10069848]
[1769427429796,3.48754968,122.51,122.46,9.59403091]
[1769427429995,7.354,122.52,122.47,0.49333243]
[1769427430499,10.84154968,122.52,122.47,0.49333243]
[1769427431001,10.84024968,122.54,122.48,2.23733091]
[1769427431202,3.48754968,122.53,122.48,2.23733091]
[1769427432103,3.48754968,122.53,122.48,9.59313091]
[1769427438708,3.48754968,122.53,122.48,7.84913243]
[1769427442413,10.84044968,122.53,122.48,0.49333243]
[1769427447326,7.3523,122.54,122.49,0.49305751]
[1769427448120,10.78052431,122.54,122.49,0.49305751]
[1769427450521,12.52452279,122.54,122.49,0.49305751]
[1769427452327,3.42822431,122.53,122.49,0.49305751]
[1769427461832,3.42822431,122.53,122.48,7.3558]
[1769427463127,3.42822431,122.53,122.48,7.84885751]
[1769427469539,5.17138875,122.53,122.48,7.84885751]
[1769427469940,3.52578108,122.52,122.48,7.3558]
[1769427477542,3.52578108,122.52,122.48,7.84620434]
[1769427478647,12.62174552,122.53,122.48,7.84620434]
[1769427482750,10.87858108,122.53,122.48,7.84620434]
[1769427486351,10.87928108,122.52,122.47,7.3563]
[1769427486649,3.52578108,122.51,122.47,7.3563]
[1769427486852,5.26894552,122.51,122.47,7.3563]
[1769427487349,3.52578108,122.5,122.45,7.357]
[1769427487742,5.26894552,122.5,122.45,7.357]
[1769427489064,3.52578108,122.5,122.45,7.357]
[1769427491052,3.52578108,122.5,122.45,7.84740434]
[1769427491958,5.26894552,122.52,122.47,0.49040434]
[1769427492157,3.52578108,122.51,122.47,0.49040434]
[1769427497061,3.52578108,122.51,122.46,7.3566]
[1769427499060,3.52578108,122.51,122.46,7.84799136]
[1769427503966,3.35129426,122.5,122.46,7.3566]
[1769427510277,3.35129426,122.5,122.45,7.84889136]
[1769427511672,10.70589426,122.5,122.45,7.84889136]
[1769427512171,3.35129426,122.49,122.45,7.84889136]
[1769427514267,10.70529426,122.51,122.46,2.2345558]
[1769427515774,10.70529426,122.51,122.46,0.49139136]
[1769427516472,3.35129426,122.5,122.46,0.49139136]
[1769427527986,3.35129426,122.5,122.45,9.10066444]
[1769427528887,3.35129426,122.5,122.45,7.3575]
[1769427529889,3.33731779,122.49,122.43,22.58692316]
[1769427530088,3.33731779,122.48,122.43,22.58692316]
[1769427530383,3.33731779,122.48,122.43,7.3582]
[1769427538897,3.33731779,122.48,122.44,7.85393556]
[1769427554706,3.33731779,122.48,122.45,7.3575]
[1769427554903,3.33731779,122.5,122.45,7.3575]
[1769427561509,10.69201779,122.5,122.45,7.3575]
[1769427567510,114.3405,122.57,122.48,0.49678841]
[1769427567511,3.33731779,122.54,122.48,0.49678841]
[1769427568913,3.33731779,122.54,122.49,7.3551]
[1769427574116,5.08123845,122.55,122.5,7.85128841]
[1769427574417,3.33731779,122.55,122.5,7.85128841]
[1769427578522,3.33731779,122.55,122.5,0.49678841]
[1769427586427,10.68951779,122.55,122.5,0.49678841]
[1769427586633,3.33731779,122.54,122.49,7.3552]
[1769427587525,3.33731779,122.54,122.49,7.85198841]
[1769427587924,10.68961779,122.54,122.49,7.85198841]
[1769427589534,10.68961779,122.54,122.49,9.59451471]
[1769427597346,3.54321933,122.53,122.48,7.3558]
[1769427597544,3.54321933,122.55,122.49,0.4966672]
[1769427597847,3.54321933,122.55,122.5,2.2391935]
[1769427598746,3.54321933,122.55,122.5,9.5932935]
[1769427600949,3.54321933,122.55,122.51,7.3539]
[1769427601952,3.54321933,122.55,122.5,0.4966672]
[1769427602952,10.89481933,122.55,122.5,0.4966672]
[1769427610152,3.54321933,122.54,122.5,0.4966672]
[1769427616961,10.71266992,122.55,122.5,7.8508672]
[1769427619164,3.36106992,122.55,122.5,7.8508672]
[1769427636274,3.52030251,122.57,122.52,0.49577803]
[1769427637881,3.52030251,122.57,122.52,7.84917803]
[1769427638180,9.78286772,122.57,122.52,7.84917803]
[1769427638881,3.52030251,122.57,122.52,7.84917803]
[1769427641578,1.7425263,122.58,122.53,7.84847803]
[1769427641778,338.47202881,122.59,122.53,7.84847803]
[1769427642378,338.47202881,122.59,122.54,0.49577803]
[1769427644985,3.52030251,122.58,122.54,0.49577803]
[1769427647987,10.87020251,122.58,122.54,0.49577803]
[1769427648783,10.87020251,122.58,122.53,7.3528]
[1769427650982,12.61272881,122.58,122.53,7.3528]
[1769427651587,12.61196002,122.58,122.53,7.3528]
[1769427654391,10.87020251,122.58,122.53,7.3528]
[1769427665901,12.61196002,122.58,122.53,7.3528]
[1769427666194,5.17936401,122.56,122.5,15.72480005]
[1769427666399,5.17936401,122.56,122.5,0.49607689]
[1769427667295,5.17936401,122.56,122.49,16.97048067]
[1769427667296,3.4376065,122.58,122.51,2.2378344]
[1769427667503,3.4376065,122.58,122.52,0.49607689]
[1769427669100,3.4376065,122.58,122.53,7.3525]
[1769427671008,325.76,122.61,122.52,0.49607689]
[1769427671009,3.4376065,122.56,122.52,0.49607689]
[1769427671205,5.17936401,122.56,122.51,7.3538]
[1769427671507,3.4376065,122.55,122.5,0.49607689]
[1769427672907,5.17936401,122.55,122.5,7.85057689]
[1769427674704,5.17936401,122.55,122.48,321.37243499]
[1769427674705,3.47076229,122.54,122.48,327.48335763]
[1769427674910,3.47076229,122.53,122.48,327.48335763]
[1769427675310,3.47076229,122.53,122.49,7.3551]
[1769427681715,3.47076229,122.53,122.47,1.74175751]
[1769427681915,3.47076229,122.53,122.46,2.239984]
[1769427682213,3.33731779,122.52,122.46,2.239984]
[1769427682913,3.33731779,122.52,122.47,7.3563]
[1769427684717,3.33731779,122.52,122.46,7.85512649]
[1769427686216,3.33731779,122.52,122.46,9.596884]
[1769427687620,3.33731779,122.52,122.47,7.3561]
[1769427688618,3.33731779,122.5,122.44,0.49822649]
[1769427689413,3.33731779,122.5,122.45,7.3576]
[1769427694322,3.33731779,122.5,122.45,7.85582649]
[1769427698127,3.33731779,122.5,122.46,7.357]
[1769427702235,1.74175751,122.53,122.47,7.3561]
[1769427702932,9.09485751,122.53,122.47,7.3561]
[1769427704230,3.24932194,122.52,122.47,7.3561]
[1769427706938,3.24932194,122.52,122.47,10.78457126]
[1769427719140,10.60272194,122.52,122.47,10.78457126]
[1769427723643,5.33153497,122.51,122.46,3.32737922]
[1769427724943,5.33153497,122.51,122.46,10.68437922]
[1769427728348,3.58813109,122.5,122.45,7.3575]
[1769427728652,5.33153497,122.49,122.44,3.32737922]
[1769427733551,5.33153497,122.49,122.44,10.68557922]
[1769427735254,3.58813109,122.49,122.44,10.68557922]
[1769427736144,3.58813109,122.49,122.44,3.32737922]
[1769427736350,12.58019406,122.51,122.45,10.81246236]
[1769427736549,3.48269018,122.5,122.45,10.81246236]
[1769427739955,5.22609406,122.5,122.45,10.81246236]
[1769427742747,3.48269018,122.5,122.45,10.81246236]
[1769427744655,7.3541,122.51,122.46,10.63167879]
[1769427744852,336.85736369,122.52,122.46,10.63167879]
[1769427745761,329.50386369,122.52,122.47,10.63107879]
[1769427754969,3.54386369,122.51,122.47,10.63107879]
[1769427758368,5.28726757,122.51,122.47,10.63107879]
[1769427759568,5.28726757,122.5,122.46,7.357]
[1769427760458,5.28726757,122.5,122.46,10.63177879]
[1769427760663,3.54386369,122.5,122.46,10.63177879]
[1769427763173,1.74340388,122.51,122.46,10.63177879]
[1769427763872,1.74340388,122.51,122.47,3.27477879]
[1769427769379,5.09560251,122.51,122.47,3.27477879]
[1769427773579,5.0960431,122.51,122.47,3.27477879]
[1769427785888,3.35219863,122.51,122.47,3.27477879]
[1769427788784,5.0960431,122.51,122.47,3.27477879]
[1769427789493,12.4502431,122.51,122.47,3.27477879]
[1769427792591,5.0960431,122.51,122.47,3.27477879]
[1769427800698,12.4500431,122.51,122.46,7.357]
[1769427801094,5.16408448,122.5,122.45,3.35428435]
[1769427801997,7.3553,122.49,122.45,3.35428435]
[1769427803798,10.77554001,122.49,122.45,3.35428435]
[1769427804698,10.77554001,122.49,122.44,7.3582]
[1769427805295,10.77554001,122.49,122.44,10.71248435]
[1769427814910,10.77554001,122.49,122.44,3.35428435]
[1769427815507,3.42024001,122.47,122.42,341.44435999]
[1769427815711,3.42024001,122.47,122.42,326.21563683]
[1769427819407,3.42024001,122.47,122.42,327.9594813]
[1769427824818,3.42024001,122.47,122.42,326.21563683]
[1769427825118,3.42024001,122.47,122.42,318.85633683]
[1769427825119,10.77684001,122.47,122.42,318.85633683]
[1769427832826,10.77684001,122.47,122.42,3.35428435]
[1769427833026,3.42024001,122.47,122.42,10.71348435]
[1769427834323,3.42024001,122.47,122.42,12.45732882]
[1769427835529,3.42024001,122.47,122.42,12.45806645]
[1769427845234,7.3559,122.48,122.43,10.80446406]
[1769427845732,10.62071164,122.48,122.43,10.80446406]
[1769427846329,3.26481164,122.48,122.44,3.44566406]
[1769427854546,3.26481164,122.48,122.42,10.80496406]
[1769427854843,3.26481164,122.48,122.43,3.44566406]
[1769427860047,10.62091164,122.48,122.43,3.44566406]
[1769427865349,12.36549374,122.48,122.43,3.44566406]
[1769427866350,10.62091164,122.48,122.43,3.44566406]
[1769427866549,12.36549374,122.48,122.43,3.44566406]
[1769427868252,10.62091164,122.48,122.43,3.44566406]
[1769427897680,12.36560458,122.48,122.43,3.44566406]
[1769427902484,10.62091164,122.48,122.43,3.44566406]
[1769427905086,12.36560458,122.48,122.43,3.44566406]
[1769427905884,10.62091164,122.48,122.43,3.44566406]
[1769427909487,12.36560458,122.48,122.43,3.44566406]
[1769427925101,3.39850267,122.47,122.43,3.44566406]
[1769427925395,10.75490267,122.47,122.43,3.44566406]
[1769427943528,3.39850267,122.46,122.42,7.3593]
[1769427946833,12.50159561,122.44,122.38,26.12283396]
[1769427947025,10.75690267,122.44,122.39,3.5328108]
[1769427948032,10.75690267,122.44,122.39,10.8939108]
[1769427952235,3.39850267,122.44,122.39,10.8939108]
[1769427957047,10.75680267,122.44,122.39,3.5328108]
[1769427962056,12.50241576,122.44,122.39,3.5328108]
[1769427962355,7.3583,122.44,122.39,3.5328108]
[1769427962553,3.31782973,122.43,122.39,3.5328108]
[1769427965157,3.31782973,122.43,122.38,7.3618]
[1769427966258,3.31782973,122.43,122.38,10.699501]
[1769427967559,3.31782973,122.42,122.35,3.337701]
[1769427967752,3.31782973,122.4,122.35,3.337701]
[1769427968158,3.31782973,122.4,122.35,5.08331409]
[1769427968358,3.31782973,122.42,122.37,3.337701]
[1769427968755,3.31782973,122.42,122.37,10.700101]
[1769427969866,10.67732973,122.42,122.37,3.337701]
[1769427970167,10.67732973,122.42,122.36,9.10861309]
[1769427970168,3.31782973,122.41,122.36,9.10861309]
[1769427970359,3.31782973,122.41,122.36,10.700701]
[1769427972568,3.31782973,122.41,122.36,12.44631409]
[1769427978572,3.31782973,122.41,122.37,5.0314774]
[1769427978764,10.84113576,122.43,122.38,5.0314774]
[1769427979461,3.48203576,122.45,122.4,3.28586431]
[1769427979664,3.48203576,122.47,122.41,5.0314774]
[1769427980969,367.52381309,122.49,122.41,5.0314774]
[1769427980970,3.48203576,122.46,122.41,5.0314774]
[1769427985264,3.48203576,122.46,122.41,12.3913774]
[1769427990677,10.83793576,122.48,122.43,5.0314774]
[1769427991171,10.83793576,122.48,122.43,3.28586431]
[1769428008895,3.48203576,122.48,122.44,3.35464582]
[1769428009090,3.28701177,122.5,122.44,5.10025891]
[1769428009292,3.28701177,122.5,122.45,3.35464582]
[1769428009689,114.3591,122.55,122.45,3.35464582]
[1769428009690,3.28701177,122.52,122.46,3.35464582]
[1769428009892,3.28701177,122.52,122.47,5.10025891]
[1769428010097,3.28701177,122.52,122.47,3.35464582]
[1769428010897,3.28701177,122.52,122.47,12.45605891]
[1769428014506,3.28701177,122.52,122.48,3.35464582]
[1769428020308,3.28701177,122.5,122.46,10.71164582]
[1769428020509,5.0298786,122.5,122.46,10.71164582]
[1769428020816,114.3616,122.55,122.42,5.09751265]
[1769428020817,3.28701177,122.48,122.42,5.09751265]
[1769428021003,3.28701177,122.48,122.42,3.35464582]
[1769428021208,5.0298786,122.48,122.42,3.35464582]
[1769428022111,5.0298786,122.48,122.44,7.3579]
[1769428022510,3.28701177,122.47,122.43,7.3588]
[1769428023106,3.28701177,122.47,122.42,10.71404582]
[1769428023410,5.0298786,122.47,122.42,10.71404582]
[1769428024711,3.28701177,122.47,122.42,10.71404582]
[1769428027720,5.0298786,122.47,122.42,10.71404582]
[1769428032320,3.28701177,122.46,122.42,10.71404582]
[1769428032520,3.28701177,122.46,122.42,7.3594]
[1769428032726,3.28701177,122.46,122.42,10.71404582]
[1769428033220,1.74286683,122.47,122.42,10.71404582]
[1769428037226,5.1479606,122.47,122.42,10.71404582]
[1769428038724,5.1479606,122.47,122.43,7.3586]
[1769428038919,3.40509377,122.47,122.43,7.3586]
[1769428039425,3.40509377,122.47,122.43,10.64556894]
[1769428041827,4.98239615,122.49,122.44,10.64516894]
[1769428042036,3.23952932,122.49,122.45,3.28696894]
[1769428042923,10.59472932,122.49,122.44,7.3582]
[1769428043129,3.23952932,122.48,122.44,7.3582]
[1769428043433,3.23952932,122.48,122.43,3.28696894]
[1769428043434,3.23952932,122.47,122.43,10.64576894]
[1769428054432,7.356,122.48,122.43,10.64576894]
[1769428054632,10.59552932,122.48,122.43,10.64576894]
[1769428055338,10.59552932,122.48,122.43,12.38863577]
[1769428057538,10.59552932,122.48,122.43,10.64576894]
[1769428059341,3.23952932,122.48,122.43,10.64576894]
[1769428061938,3.23952932,122.48,122.43,3.28696894]
[1769428062131,12.33699615,122.5,122.44,10.64506894]
[1769428062833,10.59412932,122.5,122.44,10.64506894]
[1769428065347,3.23952932,122.5,122.46,3.28696894]
[1769428066645,3.23952932,122.5,122.45,7.357]
[1769428067746,3.23952932,122.5,122.45,10.64396894]
[1769428081067,12.4813572,122.52,122.46,10.89668902]
[1769428081257,12.4813572,122.52,122.47,3.53988902]
[1769428087970,12.4813572,122.52,122.48,3.53988902]
[1769428088275,1.74370855,122.52,122.48,3.53988902]
[1769428088464,5.1278572,122.52,122.48,3.53988902]
[1769428091973,3.38414865,122.52,122.48,3.53988902]
[1769428095876,338.4601572,122.54,122.48,10.89548902]
[1769428096675,3.38414865,122.53,122.48,10.89548902]
[1769428097474,3.38414865,122.53,122.48,7.3556]
[1769428099985,3.38414865,122.53,122.48,10.73012707]
[1769428105896,10.73694865,122.53,122.48,10.73012707]
[1769428111096,7.3528,122.53,122.49,3.37452707]
[1769428116907,12.45594951,122.54,122.49,3.37452707]
[1769428119206,12.45594951,122.54,122.49,10.72952707]
[1769428124202,3.35994096,122.53,122.49,7.355]